[Event "*** Titled Tuesday Blitz"]
[Site "Chess.com"]
[Date "2019.02.05"]
[Round "3"]
[White "TomasKapitanchuk"]
[Black "josmito10"]
[Result "0-1"]
[WhiteElo "2422"]
[BlackElo "2738"]
[TimeControl "180+2"]
[EndTime "13:37:56 PST"]
[Termination "josmito10 won by checkmate"]

1. e4 {[%clk 0:03:01.9]} 1... c5 {[%clk 0:03:00.4]} 2. Nf3 {[%clk 0:03:02.9]}
2... Nc6 {[%clk 0:03:02]} 3. Bb5 {[%clk 0:03:04]} 3... d6 {[%clk 0:03:03.9]} 4.
O-O {[%clk 0:03:04.3]} 4... Bd7 {[%clk 0:03:05.8]} 5. Re1 {[%clk 0:03:05.1]}
5... Nf6 {[%clk 0:03:07.4]} 6. c3 {[%clk 0:03:05.2]} 6... a6 {[%clk 0:03:09.1]}
7. Bc4 {[%clk 0:03:06.7]} 7... b5 {[%clk 0:03:05.6]} 8. Bf1 {[%clk 0:03:07.8]}
8... Bg4 {[%clk 0:03:05.7]} 9. d4 {[%clk 0:03:09.1]} 9... cxd4 {[%clk
0:03:05.6]} 10. cxd4 {[%clk 0:03:11]} 10... e5 {[%clk 0:03:06.7]} 11. Be3 {[%clk
0:03:09.5]} 11... Bxf3 {[%clk 0:03:00.3]} 12. gxf3 {[%clk 0:03:09]} 12... Be7
{[%clk 0:03:00]} 13. a4 {[%clk 0:03:05.8]} 13... b4 {[%clk 0:02:41.2]} 14. d5
{[%clk 0:03:03.6]} 14... Nb8 {[%clk 0:02:40.7]} 15. Qd2 {[%clk 0:02:52]} 15...
a5 {[%clk 0:02:39.7]} 16. Bb5+ {[%clk 0:02:48]} 16... Nbd7 {[%clk 0:02:41]} 17.
Qe2 {[%clk 0:02:41.2]} 17... O-O {[%clk 0:02:41.9]} 18. Nd2 {[%clk 0:02:43]}
18... Nh5 {[%clk 0:02:39]} 19. Nc4 {[%clk 0:02:40.3]} 19... Bg5 {[%clk
0:02:12.8]} 20. Kh1 {[%clk 0:02:36.5]} 20... Bxe3 {[%clk 0:02:10.3]} 21. fxe3
{[%clk 0:02:34.2]} 21... Nc5 {[%clk 0:01:56.6]} 22. Rg1 {[%clk 0:02:28.9]} 22...
g6 {[%clk 0:01:55.7]} 23. Rg4 {[%clk 0:02:09.9]} 23... Kh8 {[%clk 0:01:55.8]}
24. Rag1 {[%clk 0:02:10.6]} 24... Qe7 {[%clk 0:01:51.1]} 25. Qg2 {[%clk
0:02:05.2]} 25... f5 {[%clk 0:01:40]} 26. exf5 {[%clk 0:01:53.9]} 26... Rxf5
{[%clk 0:01:41.9]} 27. Nd2 {[%clk 0:01:53.6]} 27... Raf8 {[%clk 0:01:36.8]} 28.
Rg5 {[%clk 0:01:51.8]} 28... Rxg5 {[%clk 0:01:28.1]} 29. Qxg5 {[%clk 0:01:53.7]}
29... Qxg5 {[%clk 0:01:29.9]} 30. Rxg5 {[%clk 0:01:54.9]} 30... Nf6 {[%clk
0:01:31.1]} 31. e4 {[%clk 0:01:29.8]} 31... Nh5 {[%clk 0:01:24.4]} 32. Rg1
{[%clk 0:01:23.7]} 32... Kg7 {[%clk 0:01:23.3]} 33. Rf1 {[%clk 0:01:18.9]} 33...
Kh6 {[%clk 0:01:15.1]} 34. Nc4 {[%clk 0:01:18.4]} 34... Nxe4 {[%clk 0:01:16.3]}
35. Nxe5 {[%clk 0:00:50.3]} 35... Nd2 {[%clk 0:00:37]} 36. Rf2 {[%clk
0:00:48.7]} 36... Nb3 {[%clk 0:00:12]} 37. Nc4 {[%clk 0:00:46]} 37... Rf6 {[%clk
0:00:11.7]} 38. Bd7 {[%clk 0:00:43]} 38... Nf4 {[%clk 0:00:12]} 39. Rf1 {[%clk
0:00:39.2]} 39... Nxd5 {[%clk 0:00:11.6]} 40. Rd1 {[%clk 0:00:40.5]} 40... Nf4
{[%clk 0:00:08.9]} 41. Rxd6 {[%clk 0:00:39.9]} 41... Rxd6 {[%clk 0:00:07.6]} 42.
Nxd6 {[%clk 0:00:41.8]} 42... Nd3 {[%clk 0:00:09.3]} 43. Nb7 {[%clk 0:00:24.2]}
43... Nxb2 {[%clk 0:00:10.1]} 44. Bb5 {[%clk 0:00:19.5]} 44... Kg5 {[%clk
0:00:10.3]} 45. Kg2 {[%clk 0:00:20.2]} 45... Kf4 {[%clk 0:00:11.7]} 46. Kf2
{[%clk 0:00:21.6]} 46... Ke5 {[%clk 0:00:08.3]} 47. Ke3 {[%clk 0:00:21.6]} 47...
Kd5 {[%clk 0:00:09.7]} 48. Kf4 {[%clk 0:00:22.1]} 48... Nc4 {[%clk 0:00:10.1]}
49. Kg5 {[%clk 0:00:20.9]} 49... Nd6 {[%clk 0:00:10.8]} 50. Nxd6 {[%clk
0:00:20.6]} 50... Kxd6 {[%clk 0:00:12.7]} 51. Bc4 {[%clk 0:00:21]} 51... Nc5
{[%clk 0:00:12.1]} 52. Kh6 {[%clk 0:00:21.7]} 52... Ke5 {[%clk 0:00:12]} 53.
Kxh7 {[%clk 0:00:22.5]} 53... Kf6 {[%clk 0:00:12.5]} 54. Kh6 {[%clk 0:00:19.9]}
54... Nxa4 {[%clk 0:00:13.1]} 55. h4 {[%clk 0:00:19.3]} 55... Nc3 {[%clk
0:00:13.6]} 56. Bd3 {[%clk 0:00:20.3]} 56... a4 {[%clk 0:00:13.8]} 57. Bxg6
{[%clk 0:00:21.7]} 57... a3 {[%clk 0:00:13.3]} 58. h5 {[%clk 0:00:23]} 58... a2
{[%clk 0:00:14.3]} 59. Kh7 {[%clk 0:00:24.5]} 59... a1=Q {[%clk 0:00:16.2]} 60.
Be8 {[%clk 0:00:24.4]} 60... Qa7+ {[%clk 0:00:16.9]} 61. Kg8 {[%clk 0:00:25.3]}
61... Qg7# {[%clk 0:00:18.3]} 0-1

[Event "*** Titled Tuesday Blitz"]
[Site "Chess.com"]
[Date "2019.02.05"]
[Round "3"]
[White "Kumi29"]
[Black "Fins0905"]
[Result "1/2-1/2"]
[WhiteElo "2407"]
[BlackElo "2628"]
[TimeControl "180+2"]
[EndTime "13:37:58 PST"]
[Termination "Game drawn by stalemate"]

1. d4 {[%clk 0:03:01]} 1... d5 {[%clk 0:02:59.4]} 2. Bf4 {[%clk 0:02:59.6]} 2...
c5 {[%clk 0:02:59.7]} 3. e3 {[%clk 0:02:59.8]} 3... cxd4 {[%clk 0:02:59.3]} 4.
exd4 {[%clk 0:03:00.6]} 4... Nc6 {[%clk 0:02:58.5]} 5. c3 {[%clk 0:03:00.7]}
5... Nf6 {[%clk 0:02:57.8]} 6. Bd3 {[%clk 0:03:00.3]} 6... Bg4 {[%clk
0:02:57.5]} 7. f3 {[%clk 0:02:59.7]} 7... Bh5 {[%clk 0:02:58]} 8. Ne2 {[%clk
0:03:00.5]} 8... e6 {[%clk 0:02:57.2]} 9. O-O {[%clk 0:03:00.5]} 9... Bd6 {[%clk
0:02:57.4]} 10. Nd2 {[%clk 0:02:59.7]} 10... Bg6 {[%clk 0:02:54.9]} 11. Bxg6
{[%clk 0:02:43.6]} 11... hxg6 {[%clk 0:02:56.8]} 12. Qe1 {[%clk 0:02:44.7]}
12... Bxf4 {[%clk 0:02:46.9]} 13. Nxf4 {[%clk 0:02:46.6]} 13... Qd6 {[%clk
0:02:45]} 14. Qg3 {[%clk 0:02:43.1]} 14... Ne7 {[%clk 0:02:32.2]} 15. Nd3 {[%clk
0:02:20.4]} 15... Nf5 {[%clk 0:02:07.1]} 16. Qxd6 {[%clk 0:02:20.5]} 16... Nxd6
{[%clk 0:02:09]} 17. Rfe1 {[%clk 0:02:13.4]} 17... O-O {[%clk 0:02:00.1]} 18.
Kf2 {[%clk 0:02:08.3]} 18... Rfc8 {[%clk 0:01:50.4]} 19. Re2 {[%clk 0:02:05.1]}
19... Nd7 {[%clk 0:01:46.1]} 20. Rae1 {[%clk 0:02:04.4]} 20... b5 {[%clk
0:01:44.3]} 21. Nb3 {[%clk 0:02:00.5]} 21... Nb7 {[%clk 0:01:40.2]} 22. a3
{[%clk 0:01:53.9]} 22... a5 {[%clk 0:01:35.8]} 23. Ne5 {[%clk 0:01:42.6]} 23...
Nxe5 {[%clk 0:01:32.7]} 24. Rxe5 {[%clk 0:01:44.5]} 24... b4 {[%clk 0:01:29.9]}
25. axb4 {[%clk 0:01:44.5]} 25... axb4 {[%clk 0:01:30.9]} 26. cxb4 {[%clk
0:01:42.8]} 26... Rc4 {[%clk 0:01:18.6]} 27. R5e2 {[%clk 0:01:07.2]} 27... Rxb4
{[%clk 0:01:18.4]} 28. Nc5 {[%clk 0:01:08.6]} 28... Nd6 {[%clk 0:01:04.6]} 29.
Rd1 {[%clk 0:00:49.6]} 29... Ra2 {[%clk 0:00:48.1]} 30. g4 {[%clk 0:00:28.9]}
30... Rbxb2 {[%clk 0:00:42.5]} 31. Rxb2 {[%clk 0:00:30.8]} 31... Rxb2+ {[%clk
0:00:44.1]} 32. Kg3 {[%clk 0:00:32.4]} 32... Nb5 {[%clk 0:00:39.1]} 33. Ra1
{[%clk 0:00:29.2]} 33... Nxd4 {[%clk 0:00:35.9]} 34. Ra8+ {[%clk 0:00:29.9]}
34... Kh7 {[%clk 0:00:37.1]} 35. Nd7 {[%clk 0:00:29.9]} 35... g5 {[%clk
0:00:33.8]} 36. h4 {[%clk 0:00:28.1]} 36... Ne2+ {[%clk 0:00:32.6]} 37. Kf2
{[%clk 0:00:24.2]} 37... gxh4 {[%clk 0:00:30.4]} 38. g5 {[%clk 0:00:20.5]} 38...
Nf4+ {[%clk 0:00:22.4]} 39. Ke3 {[%clk 0:00:20.6]} 39... Ng6 {[%clk 0:00:23.5]}
40. f4 {[%clk 0:00:18.6]} 40... h3 {[%clk 0:00:21.8]} 41. Ra1 {[%clk 0:00:17.7]}
41... Rb3+ {[%clk 0:00:19.1]} 42. Kf2 {[%clk 0:00:16.7]} 42... Nxf4 {[%clk
0:00:19.9]} 43. Nf8+ {[%clk 0:00:16.9]} 43... Kg8 {[%clk 0:00:21]} 44. Ra8
{[%clk 0:00:18.1]} 44... g6 {[%clk 0:00:07.7]} 45. Nxg6+ {[%clk 0:00:18]} 45...
Kg7 {[%clk 0:00:08.9]} 46. Nxf4 {[%clk 0:00:19.9]} 46... h2 {[%clk 0:00:09.7]}
47. Kg2 {[%clk 0:00:19.6]} 47... Rb2+ {[%clk 0:00:11]} 48. Kh1 {[%clk
0:00:20.5]} 48... Rf2 {[%clk 0:00:11.8]} 49. Nh3 {[%clk 0:00:17.2]} 49... Rb2
{[%clk 0:00:12.5]} 50. Ra3 {[%clk 0:00:16.4]} 50... e5 {[%clk 0:00:12.1]} 51.
Rg3 {[%clk 0:00:17.4]} 51... d4 {[%clk 0:00:12.6]} 52. Rg2 {[%clk 0:00:18.7]}
52... Rxg2 {[%clk 0:00:09.5]} 53. Kxg2 {[%clk 0:00:20.6]} 53... d3 {[%clk
0:00:09.7]} 54. Nf2 {[%clk 0:00:19.6]} 54... d2 {[%clk 0:00:08.5]} 55. Kxh2
{[%clk 0:00:20.6]} 55... e4 {[%clk 0:00:10.1]} 56. Nd1 {[%clk 0:00:19.5]} 56...
Kg6 {[%clk 0:00:11.3]} 57. Kg3 {[%clk 0:00:20.3]} 57... Kxg5 {[%clk 0:00:12.6]}
58. Kf2 {[%clk 0:00:21.5]} 58... Kf4 {[%clk 0:00:09.4]} 59. Ke2 {[%clk
0:00:21.6]} 59... f5 {[%clk 0:00:10.2]} 60. Kxd2 {[%clk 0:00:22.1]} 60... Kf3
{[%clk 0:00:11.7]} 61. Ne3 {[%clk 0:00:14.6]} 61... f4 {[%clk 0:00:12.7]} 62.
Nd5 {[%clk 0:00:14.5]} 62... e3+ {[%clk 0:00:10.8]} 63. Ke1 {[%clk 0:00:15.2]}
63... Ke4 {[%clk 0:00:11.1]} 64. Nxf4 {[%clk 0:00:15.5]} 64... Kxf4 {[%clk
0:00:12.1]} 65. Ke2 {[%clk 0:00:17]} 65... Ke4 {[%clk 0:00:13.3]} 66. Ke1 {[%clk
0:00:18.2]} 66... Kf3 {[%clk 0:00:14.5]} 67. Kf1 {[%clk 0:00:19.5]} 67... e2+
{[%clk 0:00:16.1]} 68. Ke1 {[%clk 0:00:20.9]} 68... Ke3 {[%clk 0:00:17.9]}
1/2-1/2

[Event "*** Titled Tuesday Blitz"]
[Site "Chess.com"]
[Date "2019.02.05"]
[Round "3"]
[White "MrVezunchik"]
[Black "ElGasanov"]
[Result "0-1"]
[WhiteElo "2680"]
[BlackElo "2726"]
[TimeControl "180+2"]
[EndTime "13:38:09 PST"]
[Termination "ElGasanov won on time"]

1. c4 {[%clk 0:03:01.9]} 1... e5 {[%clk 0:03:00.5]} 2. Nc3 {[%clk 0:03:02.9]}
2... Nc6 {[%clk 0:03:01.1]} 3. Nf3 {[%clk 0:03:04.5]} 3... f5 {[%clk 0:03:01.5]}
4. g3 {[%clk 0:03:04.5]} 4... g6 {[%clk 0:02:58.9]} 5. d4 {[%clk 0:02:57.8]}
5... e4 {[%clk 0:02:55.5]} 6. d5 {[%clk 0:02:29.8]} 6... exf3 {[%clk 0:02:39.9]}
7. dxc6 {[%clk 0:02:30]} 7... dxc6 {[%clk 0:02:39.7]} 8. Qxd8+ {[%clk
0:02:29.6]} 8... Kxd8 {[%clk 0:02:41.6]} 9. exf3 {[%clk 0:01:55.7]} 9... Nf6
{[%clk 0:02:39.7]} 10. Bg5 {[%clk 0:01:49.7]} 10... Be7 {[%clk 0:02:39.8]} 11.
O-O-O+ {[%clk 0:01:50.3]} 11... Ke8 {[%clk 0:02:38.5]} 12. Bf4 {[%clk
0:01:29.6]} 12... Bc5 {[%clk 0:02:35.5]} 13. Bxc7 {[%clk 0:01:21.3]} 13... Kf7
{[%clk 0:02:36.8]} 14. Be5 {[%clk 0:01:06.3]} 14... Bxf2 {[%clk 0:02:27.6]} 15.
Rd6 {[%clk 0:01:03.8]} 15... Be6 {[%clk 0:02:27.9]} 16. Be2 {[%clk 0:00:45.3]}
16... Bc5 {[%clk 0:02:27.6]} 17. Rdd1 {[%clk 0:00:43.4]} 17... Rhe8 {[%clk
0:02:27.5]} 18. Bd4 {[%clk 0:00:34.6]} 18... Bxd4 {[%clk 0:02:23.3]} 19. Rxd4
{[%clk 0:00:36.3]} 19... Rad8 {[%clk 0:02:24.1]} 20. Rhd1 {[%clk 0:00:37.7]}
20... Rxd4 {[%clk 0:02:24.5]} 21. Rxd4 {[%clk 0:00:39.6]} 21... Nd7 {[%clk
0:02:24.1]} 22. f4 {[%clk 0:00:34.3]} 22... a5 {[%clk 0:02:15.3]} 23. b3 {[%clk
0:00:27.7]} 23... Nc5 {[%clk 0:02:15.8]} 24. Bf3 {[%clk 0:00:25.1]} 24... Bc8
{[%clk 0:02:14.4]} 25. Kd2 {[%clk 0:00:24.9]} 25... h6 {[%clk 0:02:12.3]} 26. h4
{[%clk 0:00:24.8]} 26... Rg8 {[%clk 0:02:10.9]} 27. Rd6 {[%clk 0:00:23.7]} 27...
Ke7 {[%clk 0:02:08.5]} 28. Rd4 {[%clk 0:00:24.6]} 28... g5 {[%clk 0:02:10.2]}
29. fxg5 {[%clk 0:00:23.7]} 29... hxg5 {[%clk 0:02:12.1]} 30. hxg5 {[%clk
0:00:24]} 30... Rxg5 {[%clk 0:02:12.8]} 31. Ne2 {[%clk 0:00:25.7]} 31... a4
{[%clk 0:02:05.9]} 32. b4 {[%clk 0:00:24.8]} 32... Ne6 {[%clk 0:02:06]} 33. Rh4
{[%clk 0:00:26.4]} 33... Rg8 {[%clk 0:01:59.8]} 34. Ke3 {[%clk 0:00:25.7]} 34...
Ng5 {[%clk 0:01:58.4]} 35. Bg2 {[%clk 0:00:21.6]} 35... Be6 {[%clk 0:01:57.3]}
36. Nd4 {[%clk 0:00:19.3]} 36... Bd7 {[%clk 0:01:56.4]} 37. b5 {[%clk
0:00:19.3]} 37... Nf7 {[%clk 0:01:50.4]} 38. Kf2 {[%clk 0:00:18.1]} 38... Ne5
{[%clk 0:01:48.5]} 39. bxc6 {[%clk 0:00:18]} 39... bxc6 {[%clk 0:01:49.4]} 40.
Rh7+ {[%clk 0:00:16.7]} 40... Kd6 {[%clk 0:01:50.6]} 41. Rh4 {[%clk 0:00:10.7]}
41... Rb8 {[%clk 0:01:47.7]} 42. Rh5 {[%clk 0:00:06.3]} 42... Rb2+ {[%clk
0:01:46.8]} 43. Kg1 {[%clk 0:00:07.3]} 43... Rxa2 {[%clk 0:01:47.1]} 44. Nxf5+
{[%clk 0:00:08]} 44... Bxf5 {[%clk 0:01:46.1]} 45. Rxf5 {[%clk 0:00:09.9]} 45...
a3 {[%clk 0:01:47.5]} 46. c5+ {[%clk 0:00:09.2]} 46... Ke6 {[%clk 0:01:46.4]}
47. Rf1 {[%clk 0:00:09.6]} 47... Rb2 {[%clk 0:01:41.1]} 48. Ra1 {[%clk
0:00:07.5]} 48... a2 {[%clk 0:01:41.7]} 49. Kh2 {[%clk 0:00:07.4]} 49... Nd3
{[%clk 0:01:38.1]} 50. Kh3 {[%clk 0:00:07.9]} 50... Nb4 {[%clk 0:01:38.5]} 51.
Be4 {[%clk 0:00:09.3]} 51... Ke5 {[%clk 0:01:37]} 52. Bh7 {[%clk 0:00:09.4]}
52... Kd4 {[%clk 0:01:32.1]} 53. g4 {[%clk 0:00:08.7]} 53... Kc3 {[%clk
0:01:05.9]} 54. Bg8 {[%clk 0:00:09.1]} 54... Rb1 {[%clk 0:00:52.4]} 55. Rxa2
{[%clk 0:00:09.9]} 55... Nxa2 {[%clk 0:00:53.3]} 56. Bxa2 {[%clk 0:00:11.8]}
56... Rg1 {[%clk 0:00:47.6]} 57. Kh4 {[%clk 0:00:09.4]} 57... Kd4 {[%clk
0:00:48.6]} 58. g5 {[%clk 0:00:10.8]} 58... Ke5 {[%clk 0:00:44.7]} 59. Bb3
{[%clk 0:00:05.4]} 59... Kf4 {[%clk 0:00:41.8]} 60. Bd5 {[%clk 0:00:02]} 60...
cxd5 {[%clk 0:00:42.1]} 0-1

[Event "*** Titled Tuesday Blitz"]
[Site "Chess.com"]
[Date "2019.02.05"]
[Round "3"]
[White "WhiteKnight2612"]
[Black "Farrukh_Amonatov"]
[Result "1-0"]
[WhiteElo "2561"]
[BlackElo "2804"]
[TimeControl "180+2"]
[EndTime "13:38:15 PST"]
[Termination "WhiteKnight2612 won by resignation"]

1. Nf3 {[%clk 0:03:01.9]} 1... Nf6 {[%clk 0:02:43.7]} 2. g3 {[%clk 0:03:01.6]}
2... g6 {[%clk 0:02:43.4]} 3. Bg2 {[%clk 0:03:02.2]} 3... Bg7 {[%clk 0:02:45.3]}
4. O-O {[%clk 0:03:03.5]} 4... O-O {[%clk 0:02:47.2]} 5. d4 {[%clk 0:03:05]}
5... d6 {[%clk 0:02:47.1]} 6. c4 {[%clk 0:03:06.2]} 6... Nbd7 {[%clk 0:02:48.6]}
7. Nc3 {[%clk 0:03:06.2]} 7... e5 {[%clk 0:02:50]} 8. e3 {[%clk 0:03:07]} 8...
c6 {[%clk 0:02:49.9]} 9. b3 {[%clk 0:03:07.3]} 9... Re8 {[%clk 0:02:49.8]} 10.
Bb2 {[%clk 0:03:06.4]} 10... a6 {[%clk 0:02:50.6]} 11. Rc1 {[%clk 0:03:04.4]}
11... Qe7 {[%clk 0:02:50.8]} 12. Ba3 {[%clk 0:03:03.1]} 12... Bf8 {[%clk
0:02:32.2]} 13. dxe5 {[%clk 0:02:48.4]} 13... Nxe5 {[%clk 0:02:34.1]} 14. Nxe5
{[%clk 0:02:49.1]} 14... Qxe5 {[%clk 0:02:34]} 15. Bb2 {[%clk 0:02:50.4]} 15...
Bg4 {[%clk 0:02:23.9]} 16. Qd2 {[%clk 0:02:50.6]} 16... Qh5 {[%clk 0:02:20.5]}
17. Nd5 {[%clk 0:02:38.5]} 17... Nxd5 {[%clk 0:02:13.7]} 18. cxd5 {[%clk
0:02:37.4]} 18... c5 {[%clk 0:02:11]} 19. f3 {[%clk 0:02:27.4]} 19... Bd7 {[%clk
0:02:04.4]} 20. Qc3 {[%clk 0:02:16.8]} 20... Qe5 {[%clk 0:02:01.6]} 21. Qxe5
{[%clk 0:02:16.5]} 21... dxe5 {[%clk 0:02:03.5]} 22. e4 {[%clk 0:02:17.9]} 22...
Bd6 {[%clk 0:02:01]} 23. f4 {[%clk 0:02:13.5]} 23... f6 {[%clk 0:01:58.9]} 24.
fxe5 {[%clk 0:02:07.5]} 24... fxe5 {[%clk 0:01:56.8]} 25. Rf6 {[%clk 0:02:06.9]}
25... Be7 {[%clk 0:01:58.2]} 26. Rb6 {[%clk 0:02:03.2]} 26... Bg5 {[%clk
0:01:51.5]} 27. Rc3 {[%clk 0:01:31.8]} 27... Rab8 {[%clk 0:01:48.4]} 28. h4
{[%clk 0:01:27.8]} 28... Bd2 {[%clk 0:01:39.3]} 29. Rd3 {[%clk 0:01:26.6]} 29...
Ba5 {[%clk 0:01:39.4]} 30. Rd6 {[%clk 0:01:23.7]} 30... Bb5 {[%clk 0:01:40]} 31.
Rf3 {[%clk 0:01:24.3]} 31... Bc7 {[%clk 0:01:31.4]} 32. Rdf6 {[%clk 0:01:24.8]}
32... Rbd8 {[%clk 0:01:27.9]} 33. Bh3 {[%clk 0:01:22.6]} 33... Bd7 {[%clk
0:01:22.9]} 34. Kh2 {[%clk 0:00:58.1]} 34... Bxh3 {[%clk 0:01:22.4]} 35. Kxh3
{[%clk 0:01:00]} 35... Rd7 {[%clk 0:01:23.9]} 36. Rf2 {[%clk 0:00:51.3]} 36...
Kg7 {[%clk 0:01:23.2]} 37. R6f3 {[%clk 0:00:52]} 37... Bd6 {[%clk 0:01:24.4]}
38. h5 {[%clk 0:00:52.7]} 38... b5 {[%clk 0:01:21.9]} 39. Rf6 {[%clk 0:00:51.5]}
39... gxh5 {[%clk 0:01:05.7]} 40. R6f5 {[%clk 0:00:51.3]} 40... h6 {[%clk
0:00:59.5]} 41. Rxh5 {[%clk 0:00:51]} 41... c4 {[%clk 0:00:55.2]} 42. bxc4
{[%clk 0:00:50.4]} 42... bxc4 {[%clk 0:00:57.1]} 43. Rhf5 {[%clk 0:00:40.3]}
43... Rb7 {[%clk 0:00:53.9]} 44. Bc3 {[%clk 0:00:36.9]} 44... Rbe7 {[%clk
0:00:50.3]} 45. Rb2 {[%clk 0:00:29.9]} 45... Rb8 {[%clk 0:00:47.5]} 46. Rc2
{[%clk 0:00:28.1]} 46... Rf8 {[%clk 0:00:42.1]} 47. Kg4 {[%clk 0:00:24.7]} 47...
Rc8 {[%clk 0:00:39.5]} 48. Bd2 {[%clk 0:00:24.2]} 48... Kg6 {[%clk 0:00:36]} 49.
Bc3 {[%clk 0:00:21.6]} 49... Kh7 {[%clk 0:00:30.8]} 50. Rf6 {[%clk 0:00:22.2]}
50... Rd7 {[%clk 0:00:30.9]} 51. Rh2 {[%clk 0:00:22]} 51... Rg8+ {[%clk
0:00:30.5]} 52. Kf5 {[%clk 0:00:21.6]} 52... Bf8 {[%clk 0:00:23.5]} 53. Bxe5
{[%clk 0:00:21.1]} 53... Rg5+ {[%clk 0:00:23.9]} 54. Ke6 {[%clk 0:00:22]} 54...
Re7+ {[%clk 0:00:22.7]} 55. Kd6 {[%clk 0:00:23.3]} 55... Rexe5+ {[%clk
0:00:23.2]} 56. Rxf8 {[%clk 0:00:24.2]} 56... Rxe4 {[%clk 0:00:24.5]} 57. Rf7+
{[%clk 0:00:24.4]} 57... Kg6 {[%clk 0:00:24.8]} 58. Rhf2 {[%clk 0:00:19.8]}
58... Rd4 {[%clk 0:00:24.3]} 59. R7f6+ {[%clk 0:00:19.8]} 59... Kh5 {[%clk
0:00:25.3]} 60. Rh2+ {[%clk 0:00:20.4]} 60... Kg4 {[%clk 0:00:26.1]} 61. Rh4+
{[%clk 0:00:22.2]} 61... Kxg3 {[%clk 0:00:26.4]} 62. Rxd4 {[%clk 0:00:24.1]}
62... h5 {[%clk 0:00:27.7]} 63. Rxc4 {[%clk 0:00:24.8]} 63... h4 {[%clk
0:00:29.5]} 64. Rh6 {[%clk 0:00:25.7]} 64... h3 {[%clk 0:00:29.8]} 65. Rc3+
{[%clk 0:00:27]} 1-0

[Event "*** Titled Tuesday Blitz"]
[Site "Chess.com"]
[Date "2019.02.05"]
[Round "3"]
[White "PotapovaM"]
[Black "Agent-JL"]
[Result "1-0"]
[WhiteElo "2443"]
[BlackElo "2243"]
[TimeControl "180+2"]
[EndTime "13:38:29 PST"]
[Termination "PotapovaM won by resignation"]

1. d4 {[%clk 0:03:01.9]} 1... Nf6 {[%clk 0:02:59.6]} 2. c4 {[%clk 0:03:02.6]}
2... e6 {[%clk 0:03:00.7]} 3. Nf3 {[%clk 0:03:03.5]} 3... Bb4+ {[%clk
0:03:01.9]} 4. Nbd2 {[%clk 0:03:03.4]} 4... b6 {[%clk 0:02:54.7]} 5. a3 {[%clk
0:03:03.1]} 5... Bxd2+ {[%clk 0:02:54.8]} 6. Bxd2 {[%clk 0:03:03.6]} 6... Bb7
{[%clk 0:02:55.4]} 7. e3 {[%clk 0:03:04.9]} 7... d6 {[%clk 0:02:44.3]} 8. Bd3
{[%clk 0:03:05.4]} 8... Nbd7 {[%clk 0:02:45.4]} 9. Qc2 {[%clk 0:03:06.4]} 9...
O-O {[%clk 0:02:40.8]} 10. Bc3 {[%clk 0:02:59]} 10... Qe7 {[%clk 0:02:41.2]} 11.
O-O {[%clk 0:02:51.8]} 11... e5 {[%clk 0:02:38.2]} 12. Be2 {[%clk 0:02:41.9]}
12... a5 {[%clk 0:02:05.8]} 13. Rad1 {[%clk 0:02:38.9]} 13... e4 {[%clk
0:01:37.3]} 14. Nd2 {[%clk 0:02:33.8]} 14... d5 {[%clk 0:01:29.3]} 15. cxd5
{[%clk 0:02:24.1]} 15... Bxd5 {[%clk 0:01:31.2]} 16. Nc4 {[%clk 0:02:23]} 16...
Ne8 {[%clk 0:01:11.5]} 17. Ne5 {[%clk 0:02:12]} 17... Nxe5 {[%clk 0:01:09.7]}
18. dxe5 {[%clk 0:02:13.9]} 18... c6 {[%clk 0:01:07.5]} 19. b4 {[%clk
0:02:02.8]} 19... a4 {[%clk 0:01:05.1]} 20. b5 {[%clk 0:02:00]} 20... Bb3 {[%clk
0:01:05.8]} 21. Qb2 {[%clk 0:01:56.5]} 21... c5 {[%clk 0:01:01.7]} 22. Rd2
{[%clk 0:01:45.6]} 22... Nc7 {[%clk 0:01:01.7]} 23. Rd6 {[%clk 0:01:45.1]} 23...
Rab8 {[%clk 0:00:53]} 24. Qb1 {[%clk 0:01:24.3]} 24... f5 {[%clk 0:00:29]} 25.
Ba1 {[%clk 0:00:54.4]} 25... Rfd8 {[%clk 0:00:26.5]} 26. Qb2 {[%clk 0:00:53.6]}
26... Ne8 {[%clk 0:00:19.2]} 27. Rc6 {[%clk 0:00:46.7]} 27... Bd5 {[%clk
0:00:17.1]} 28. h3 {[%clk 0:00:32.9]} 28... Bxc6 {[%clk 0:00:16.9]} 29. bxc6
{[%clk 0:00:34.8]} 29... b5 {[%clk 0:00:18.4]} 30. Bxb5 {[%clk 0:00:34.6]} 30...
Nc7 {[%clk 0:00:19.3]} 31. Bc4+ {[%clk 0:00:33.7]} 31... Kh8 {[%clk 0:00:20]}
32. Qc2 {[%clk 0:00:34.7]} 32... Ra8 {[%clk 0:00:15.8]} 33. Qc3 {[%clk
0:00:34.6]} 33... Nd5 {[%clk 0:00:13.1]} 34. Qc2 {[%clk 0:00:35.5]} 34... Nc7
{[%clk 0:00:08.1]} 35. g3 {[%clk 0:00:35.2]} 35... Qe8 {[%clk 0:00:06.6]} 36.
Qc3 {[%clk 0:00:30.9]} 36... Qxc6 {[%clk 0:00:05.2]} 37. e6 {[%clk 0:00:31.7]}
37... Rg8 {[%clk 0:00:06.5]} 38. e7 {[%clk 0:00:31.1]} 38... Qd7 {[%clk
0:00:05.4]} 39. Bxg8 {[%clk 0:00:26.8]} 39... Rxg8 {[%clk 0:00:07.3]} 40. Qe5
{[%clk 0:00:28]} 40... Nd5 {[%clk 0:00:06.1]} 41. Rd1 {[%clk 0:00:21.2]} 41...
Qxe7 {[%clk 0:00:07.5]} 42. Qxd5 {[%clk 0:00:21.4]} 42... Qg5 {[%clk 0:00:06.5]}
43. Qe5 {[%clk 0:00:20]} 43... h5 {[%clk 0:00:07.6]} 44. Qf4 {[%clk 0:00:18.7]}
44... Qxf4 {[%clk 0:00:04.4]} 45. gxf4 {[%clk 0:00:19.7]} 45... Kh7 {[%clk
0:00:06.3]} 46. Be5 {[%clk 0:00:16.7]} 46... Rc8 {[%clk 0:00:07.5]} 47. Rc1
{[%clk 0:00:17.1]} 47... c4 {[%clk 0:00:08.9]} 48. Rc3 {[%clk 0:00:18.4]} 48...
Kg6 {[%clk 0:00:10.3]} 49. Kf1 {[%clk 0:00:17.3]} 49... Kf7 {[%clk 0:00:11.9]}
50. Bd6 {[%clk 0:00:18.5]} 50... Ke6 {[%clk 0:00:12.8]} 51. Bb4 {[%clk
0:00:19.6]} 51... g6 {[%clk 0:00:11.3]} 52. Ke2 {[%clk 0:00:20.7]} 52... Kd5
{[%clk 0:00:12.3]} 53. Rc1 {[%clk 0:00:21.7]} 53... Rg8 {[%clk 0:00:13.4]} 54.
Rd1+ {[%clk 0:00:22]} 54... Kc6 {[%clk 0:00:13.1]} 55. Rg1 {[%clk 0:00:21.1]}
55... Kd5 {[%clk 0:00:13.9]} 56. Kd2 {[%clk 0:00:22]} 56... Rg7 {[%clk
0:00:11.8]} 57. Kc3 {[%clk 0:00:23.2]} 57... Rg8 {[%clk 0:00:13]} 58. Rd1+
{[%clk 0:00:23.6]} 58... Kc6 {[%clk 0:00:14.2]} 59. Kxc4 {[%clk 0:00:24.7]}
59... g5 {[%clk 0:00:15.9]} 60. Rg1 {[%clk 0:00:24.8]} 60... g4 {[%clk
0:00:16.4]} 61. hxg4 {[%clk 0:00:25.5]} 61... fxg4 {[%clk 0:00:17.5]} 62. Rh1
{[%clk 0:00:26.7]} 62... Rh8 {[%clk 0:00:17.1]} 63. Be7 {[%clk 0:00:27.9]} 63...
Rh7 {[%clk 0:00:17.9]} 64. Bh4 {[%clk 0:00:28.6]} 64... Rb7 {[%clk 0:00:16.4]}
65. f5 {[%clk 0:00:29.2]} 65... Rf7 {[%clk 0:00:16.8]} 66. f6 {[%clk 0:00:30.2]}
66... Kd6 {[%clk 0:00:16.4]} 67. Rd1+ {[%clk 0:00:30.9]} 67... Ke6 {[%clk
0:00:11.1]} 68. Rd4 {[%clk 0:00:31.5]} 68... Kf5 {[%clk 0:00:10.6]} 69. Rd5+
{[%clk 0:00:29.8]} 69... Kg6 {[%clk 0:00:12.2]} 70. Re5 {[%clk 0:00:28.9]} 70...
Rxf6 {[%clk 0:00:10.6]} 71. Bxf6 {[%clk 0:00:29.1]} 71... Kxf6 {[%clk
0:00:12.5]} 72. Rxh5 {[%clk 0:00:30.1]} 1-0